Cogmind - Beta 11.1 @@@ ROGUE MODE // 2022.05.02 @ 14:49:18 Player: Olga Result: Self-destructed Performance ------------- Evolutions (6) 3000 Regions Visited (8) 1600 Robots Destroyed (8) 40 Value Destroyed (147) 147 Prototype IDs (3) 60 Alien Tech Used (0) 0 Bonus (700) 700 TOTAL SCORE: 5547 Bonus ------- Pacifist 200 Entered DSFs 500 Cogmind --------- Core Integrity 1055/1150 Matter 210/300 Energy 54/100 System Corruption 0% Temperature Cool (0) Movement Flying (35) Location -4/Factory Parts ------- > --- POWER (1) -------- (None) > --- PROPULSION (4) --- Improved Cesium-ion Thruster > --- UTILITY (12) ----- Advanced Weight Redist. System Visual Processing Unit Enhanced Optical Array Improved Sensor Array Improved Signal Interpreter Advanced Targeting Computer Improved Utility Shielding Improved Focal Shield Hacking Suite Hacking Suite Improved System Shield > --- WEAPON (2) ------- Chainsword > --- INVENTORY (5) ---- Small Storage Unit Enhanced Optical Array System Restoration Module Great Axe Peak State ------------ > --- POWER ------------ Light Fission Core > --- PROPULSION ------- Improved Cesium-ion Thruster > --- UTILITY ---------- Advanced Weight Redist. System Visual Processing Unit Enhanced Optical Array Improved Sensor Array Improved Signal Interpreter Advanced Targeting Computer Improved Utility Shielding Improved Focal Shield Hacking Suite Hacking Suite Hacking Suite Improved System Shield > --- WEAPON ----------- Chainsword > --- INVENTORY -------- Small Storage Unit Enhanced Optical Array System Restoration Module Great Axe [Rating: 57] Favorites ----------- Power Ion Engine Engine Ion Engine Power Core Light Fission Core Propulsion Improved Hover Unit Hover Unit Improved Hover Unit Flight Unit Improved Cesium-ion Thruster Utility Visual Processing Unit Device Improved Sensor Array Storage Small Storage Unit Processor Visual Processing Unit Hackware Hacking Suite Protection Improved Utility Shielding Weapon Plasma Cutter Energy Gun Small Laser Ballistic Gun Flak Gun Special Weapon Plasma Cutter Impact Weapon Mace Slashing Weapon Chainsword Build | -11 -10 -9 -8 -7 -7 -6 -5 -4 ------- Run | Scr Mat Mat Mat Fac DSF Fac Fac Fac Slots Evolved 12 | . . 2 2 2 . 2 2 2 Power . | . . . . . . . . . Propulsion 2 | . . 1 1 . . . . . Utility 10 | . . 1 1 2 . 2 2 2 Weapon . | . . . . . . . . . Parts Attached 43 | 1 6 3 5 . 6 14 5 3 Power 2 | . 1 . . . . . . 1 Engine 1 | . 1 . . . . . . . Core 1 | . . . . . . . . 1 Reactor . | . . . . . . . . . Propulsion 14 | . 2 1 2 . 4 5 . . Treads . | . . . . . . . . . Leg . | . . . . . . . . . Wheel . | . . . . . . . . . Hover 12 | . 2 1 2 . 4 3 . . Flight 2 | . . . . . . 2 . . Utility 19 | . 2 . 2 . 2 6 5 2 Device 5 | . . . . . . 2 1 2 Storage 1 | . 1 . . . . . . . Processor 4 | . . . 1 . 1 1 1 . Hackware 4 | . . . . . . 1 3 . Protection 5 | . 1 . 1 . 1 2 . . Artifact . | . . . . . . . . . Weapon 8 | 1 1 2 1 . . 3 . . Energy Gun 1 | . . 1 . . . . . . Energy Cannon . | . . . . . . . . . Ballistic Gun 2 | 1 . . . . . 1 . . Ballistic Cannon . | . . . . . . . . . Launcher . | . . . . . . . . . Special Weapon 2 | . 1 . 1 . . . . . Impact Weapon 1 | . . 1 . . . . . . Slashing Weapon 2 | . . . . . . 2 . . Piercing Weapon . | . . . . . . . . . Special Melee Weapon . | . . . . . . . . . Unidentified Prototypes 3 | . . . 1 . . 2 . . Parts Lost 14 | . . 1 . . 3 9 . 1 Power 1 | . . . . . 1 . . . Propulsion 5 | . . . . . 1 4 . . Utility 6 | . . . . . . 5 . 1 Weapon 2 | . . 1 . . 1 . . . Highest Loss Streak 6 | . . 1 . . 2 6 . 1 To Critical Strikes . | . . . . . . . . . Average Slot Usage (%) 68 | . 68 86 88 84 86 55 61 74 Engine 3 | . 11 11 9 7 5 . . . Hover 16 | . 23 33 36 30 30 10 . . Flight 2 | . . . . . . 2 5 5 Device 2 | . . . . . . 1 5 13 Storage 5 | . 7 11 9 7 7 5 . . Processor 11 | . . . 6 7 8 15 18 21 Hackware 4 | . . . . . . . 18 19 Protection 8 | . 7 11 10 15 19 8 5 5 Energy Gun 1 | . . 11 . . . . . . Ballistic Gun 2 | . 9 . . . . 3 . . Special Weapon 3 | . 9 9 9 7 5 . . . Impact Weapon 1 | . . . 9 7 7 . . . Slashing Weapon 3 | . . . . . . 5 5 5 Naked Turns . | . . . . . . . . . Heaviest Build 23 | 2 14 16 21 21 23 23 6 15 Greatest Support 32 | 3 14 21 29 29 32 32 6 15 Greatest Overweight (x) 1 | . . . . . . 1 . . Average Overweight (x) . | . . . . . . . . . Largest Inventory Capacity 8 | 5 8 8 8 8 8 8 5 5 Average Capacity 7 | 5 6 8 8 8 8 7 5 5 Most Carried 8 | 5 5 4 3 3 8 8 5 5 Average Carried 5 | 5 4 3 2 3 7 6 4 4 Final Capacity 8 | 5 8 8 8 8 8 5 5 5 Final Carried 8 | 5 5 3 3 3 8 5 5 4 Class Distribution -------------------- 75% | Mutant 14% | Hacker-Mutant 10% | Hacker-Scout Dominant Class ---------------- Mutant | -10/Materials Mutant | -9/Materials Mutant | -8/Materials Mutant | -7/Factory Mutant | -7/DSF Mutant | -6/Factory Hacker-Mutant | -5/Factory Hacker-Scout | -4/Factory Resources | -11 -10 -9 -8 -7 -7 -6 -5 -4 ----------- Run | Scr Mat Mat Mat Fac DSF Fac Fac Fac Matter Collected 470 | 195 . 50 . . . 170 55 . Remotely . | . . . . . . . . . Salvage Created 132 | . . 77 . . . . 55 . Parts 18 | . . 12 . . . . 6 . Haulers Intercepted . | . . . . . . . . . Recyclers Shooed 1 | . . . . . . 1 . . Parts Field Recycled . | . . . . . . . . . Retrieved Matter . | . . . . . . . . . Parts Self-Destructed . | . . . . . . . . . Prevented . | . . . . . . . . . Kills | -11 -10 -9 -8 -7 -7 -6 -5 -4 ------- Run | Scr Mat Mat Mat Fac DSF Fac Fac Fac Combat Hostiles Destroyed 1 | . . 1 . . . . . . Guns 1 | . . 1 . . . . . . Classes Destroyed 6 | . . 5 . . . . 1 . Worker 1 | . . 1 . . . . . . Builder 2 | . . 2 . . . . . . Tunneler 1 | . . 1 . . . . . . Operator 1 | . . . . . . . 1 . Watcher 2 | . . 1 . . . . 1 . Grunt 1 | . . 1 . . . . . . Best Kill Streak 5 | . . 5 . . . . 1 . Combat Bots Only 1 | . . 1 . . . . . . Max Kills in Single Turn 5 | . . 5 . . . . 1 . Gunslinging . | . . . . . . . . . Exploded . | . . . . . . . . . Melee . | . . . . . . . . . Uniques/NPCs Destroyed . | . . . . . . . . . Combat | -11 -10 -9 -8 -7 -7 -6 -5 -4 -------- Run | Scr Mat Mat Mat Fac DSF Fac Fac Fac Damage Taken 2125 | . . 146 109 22 274 1372 . 202 Core 573 | . . 44 18 . 34 382 . 95 Absorbed by Shields 19 | . . . . . 19 . . . Redirected to Shielding 171 | . . . . . . 102 . 69 Core Remaining (%) 90 | 100 100 89 96 . 95 55 100 . Volleys Fired 6 | . . 4 2 . . . . . Largest 2 | . . 2 1 . . . . . Hottest 60 | . . 60 20 . . . . . Shots Fired 9 | . . 7 2 . . . . . Gun 4 | . . 4 . . . . . . Cannon . | . . . . . . . . . Launcher . | . . . . . . . . . Special 5 | . . 3 2 . . . . . Kinetic . | . . . . . . . . . Thermal 9 | . . 7 2 . . . . . Explosive . | . . . . . . . . . Electromagnetic . | . . . . . . . . . Robot Hit Streak 2 | . . 2 1 . . . . . Robot Miss Streak 3 | . . 3 1 . . . . . Penetration Max . | . . . . . . . . . Secondary Targets . | . . . . . . . . . Shots Hit Robots 13 | . . 2 1 . . 5 5 . Core Hits 9 | . . 6 . . . 1 2 . Critical Kills . | . . . . . . . . . Critical Parts Destroyed . | . . . . . . . . . Critical Strikes 1 | . . . . . . 1 . . Sever 1 | . . . . . . 1 . . Melee Attacks 23 | . . . 2 . . 9 10 2 Impact 2 | . . . 2 . . . . . Slashing 21 | . . . . . . 9 10 2 Piercing . | . . . . . . . . . Sneak Attacks 1 | . . . . . . 1 . . Combat Hostiles . | . . . . . . . . . Follow-up Attacks . | . . . . . . . . . Damage Inflicted 1188 | . . 704 11 . . 261 212 . Guns 10 | . . 10 . . . . . . Cannons . | . . . . . . . . . Explosions 682 | . . 682 . . . . . . Melee 473 | . . . . . . 261 212 . Ramming . | . . . . . . . . . Kinetic . | . . . . . . . . . Thermal 715 | . . 704 11 . . . . . Explosive . | . . . . . . . . . Electromagnetic . | . . . . . . . . . Impact . | . . . . . . . . . Slashing 473 | . . . . . . 261 212 . Piercing . | . . . . . . . . . Highest Corruption 1 | . . 1 . . . 1 . . Average Corruption 1 | . . 1 . . . 1 . . Corruption Purged . | . . . . . . . . . Corruption Blocked . | . . . . . . . . . Effects 1 | . . 1 . . . . . . Message Errors 1 | . . 1 . . . . . . Overload Shots . | . . . . . . . . . Overflow Damage 231 | . . 159 . . . 57 15 . Projectiles . | . . . . . . . . . Explosions 159 | . . 159 . . . . . . Melee 72 | . . . . . . 57 15 . Knockbacks . | . . . . . . . . . Impact . | . . . . . . . . . Kinetic . | . . . . . . . . . Secondary . | . . . . . . . . . Self-Inflicted Damage . | . . . . . . . . . Shots . | . . . . . . . . . Rammed . | . . . . . . . . . Targets Rammed . | . . . . . . . . . Kicked . | . . . . . . . . . Crushed . | . . . . . . . . . Highest Temperature 16 | . . 16 10 1 . . . . Average Temperature 5 | . . 5 10 1 . . . . Received Heat Transfer 300 | . . 75 81 6 . 138 . . Siege Activations . | . . . . . . . . . Robots Corrupted . | . . . . . . . . . Combat Hostiles . | . . . . . . . . . Parts Fried . | . . . . . . . . . Impact Corruptions . | . . . . . . . . . Robots Melted . | . . . . . . . . . Combat Hostiles . | . . . . . . . . . Parts Melted 1 | . . 1 . . . . . . Heat Transferred 599 | . . 562 37 . . . . . Parts Sabotaged . | . . . . . . . . . Parts Stolen . | . . . . . . . . . Parts Stripped . | . . . . . . . . . Power Chain Reactions . | . . . . . . . . . Missiles Intercepted . | . . . . . . . . . Alert | -11 -10 -9 -8 -7 -7 -6 -5 -4 ------- Run | Scr Mat Mat Mat Fac DSF Fac Fac Fac Peak Influence 280 | . 43 280 204 122 93 174 156 124 Initial 118 | . . 17 118 92 88 37 84 76 Average 96 | . 16 76 157 98 82 95 123 88 Maximum Alert Level 1 | . . 1 1 . . . . . Low Security (%) 96 | 100 100 84 85 100 100 100 100 100 Level 1 3 | . . 15 14 . . . . . Level 2 . | . . . . . . . . . Level 3 . | . . . . . . . . . Level 4 . | . . . . . . . . . Level 5 . | . . . . . . . . . High Security . | . . . . . . . . . Max Security . | . . . . . . . . . Squads Dispatched 6 | . . 1 1 . 1 . 2 1 Investigation 1 | . . . . . . . 1 . Extermination . | . . . . . . . . . Reinforcement 5 | . . 1 1 . 1 . 1 1 Assault . | . . . . . . . . . Garrison . | . . . . . . . . . Intercept . | . . . . . . . . . Searches Triggered . | . . . . . . . . . Construction Impeded . | . . . . . . . . . Haulers Reinforced . | . . . . . . . . . Active Scanning Responses . | . . . . . . . . . Cargo Convoy Interrupts . | . . . . . . . . . Stealth | -11 -10 -9 -8 -7 -7 -6 -5 -4 --------- Run | Scr Mat Mat Mat Fac DSF Fac Fac Fac Distress Signals 2 | . . . 1 . . 1 . . Communications Jammed . | . . . . . . . . . Distress Signals . | . . . . . . . . . Times Spotted 54 | . 1 15 6 2 4 20 2 4 Peak Tracking Total 11 | . 1 11 5 2 4 7 1 4 Tactical Retreats 8 | . . . 1 . 1 6 . . Traps | -11 -10 -9 -8 -7 -7 -6 -5 -4 ------- Run | Scr Mat Mat Mat Fac DSF Fac Fac Fac Traps Triggered 2 | . . . . . 1 1 . . Indirectly . | . . . . . . . . . Trap Hack Attempts . | . . . . . . . . . Triggered . | . . . . . . . . . Disarmed . | . . . . . . . . . Reprogrammed . | . . . . . . . . . Reused . | . . . . . . . . . Traps Extracted . | . . . . . . . . . Installed . | . . . . . . . . . Triggered . | . . . . . . . . . Machines | -11 -10 -9 -8 -7 -7 -6 -5 -4 ---------- Run | Scr Mat Mat Mat Fac DSF Fac Fac Fac Machines Disabled 3 | . . 3 . . . . . . Max in Single Turn 3 | . . 3 . . . . . . Garrison Access 2 | . . . . . . . 2 . Machines Sabotaged . | . . . . . . . . . Garrisons Compromised . | . . . . . . . . . Overloaded Fab Kills . | . . . . . . . . . Hacking | -11 -10 -9 -8 -7 -7 -6 -5 -4 --------- Run | Scr Mat Mat Mat Fac DSF Fac Fac Fac Machines Accessed 17 | . 3 4 1 1 . 4 3 1 Terminals 13 | . 3 3 1 1 . 4 . 1 Fabricators . | . . . . . . . . . Repair Stations . | . . . . . . . . . Recycling Units 2 | . . 1 . . . . 1 . Scanalyzers . | . . . . . . . . . Garrison Access 2 | . . . . . . . 2 . Total Hacks 49 | . 9 14 4 1 . 9 8 4 Successful 22 | . 4 4 3 1 . 5 2 3 Failed 27 | . 5 10 1 . . 4 6 1 Catastrophic 2 | . 1 1 . . . . . . Database Lockouts . | . . . . . . . . . Manual 24 | . 5 10 4 . . 5 . . Terminals 39 | . 9 12 4 1 . 9 . 4 Fabricators . | . . . . . . . . . Repair Stations . | . . . . . . . . . Recycling Units 5 | . . 2 . . . . 3 . Scanalyzers . | . . . . . . . . . Garrison Access 5 | . . . . . . . 5 . Terminal Hacks 15 | . 3 2 2 1 . 4 . 3 Open DSF 1 | . . . . 1 . . . . Level Access Points 2 | . 1 . . . . 1 . . Branch Access Points 2 | . . . . . . 1 . 1 Emergency Access Points 1 | . . . . . . 1 . . Terminal Index 3 | . . 1 1 . . 1 . . Locate Traps 1 | . . . . . . . . 1 Zone Layout 5 | . 2 1 1 . . . . 1 Fabricator Hacks . | . . . . . . . . . Repair Station Hacks . | . . . . . . . . . Recycling Unit Hacks . | . . . . . . . . . Scanalyzer . | . . . . . . . . . Garrison Access Hacks 2 | . . . . . . . 2 . Seal Access 2 | . . . . . . . 2 . Unauthorized Hacks 5 | . 1 2 1 . . 1 . . Terminals 5 | . 1 2 1 . . 1 . . Botnet 5 | . 1 2 1 . . 1 . . Fabricators . | . . . . . . . . . Repair Stations . | . . . . . . . . . Recycling Units . | . . . . . . . . . Scanalyzers . | . . . . . . . . . Garrison Access . | . . . . . . . . . Data Cores Recovered . | . . . . . . . . . Used . | . . . . . . . . . Hacking Detections 15 | . 3 4 1 . . 4 2 1 Full Trace Events 5 | . 2 2 . . . . 1 . Feedback Events 1 | . . 1 . . . . . . Corruption 1 | . . 1 . . . . . . Feedback Blocked . | . . . . . . . . . Robot Schematics Acquired . | . . . . . . . . . Robots Built . | . . . . . . . . . Authchips . | . . . . . . . . . Time . | . . . . . . . . . Total Robot Build Rating . | . . . . . . . . . Part Schematics Acquired . | . . . . . . . . . Parts Built . | . . . . . . . . . Authchips . | . . . . . . . . . Time . | . . . . . . . . . Total Part Build Rating . | . . . . . . . . . Parts Repaired . | . . . . . . . . . Time . | . . . . . . . . . Parts Recycled . | . . . . . . . . . Recycled Matter . | . . . . . . . . . Retrieved Matter . | . . . . . . . . . Retrieved Components . | . . . . . . . . . Parts Scanalyzed . | . . . . . . . . . Part Schematics Acquired . | . . . . . . . . . Parts Damaged . | . . . . . . . . . Bothacking | -11 -10 -9 -8 -7 -7 -6 -5 -4 ------------ Run | Scr Mat Mat Mat Fac DSF Fac Fac Fac Used RIF Installer . | . . . . . . . . . Robots Hacked . | . . . . . . . . . Non-combat . | . . . . . . . . . Combat . | . . . . . . . . . Robot Hacks Applied . | . . . . . . . . . Relay Couplers Released . | . . . . . . . . . Fabnet Peak Effective % . | . . . . . . . . . Robots Rewired . | . . . . . . . . . Allies Hacked . | . . . . . . . . . Hacks Repelled . | . . . . . . . . . Allies | -11 -10 -9 -8 -7 -7 -6 -5 -4 -------- Run | Scr Mat Mat Mat Fac DSF Fac Fac Fac Total Allies . | . . . . . . . . . Largest Group . | . . . . . . . . . Highest-Rated Group . | . . . . . . . . . Highest-Rated Ally . | . . . . . . . . . Total Orders . | . . . . . . . . . Ally Attacks . | . . . . . . . . . Total Damage . | . . . . . . . . . Kills . | . . . . . . . . . Allies Corrupted . | . . . . . . . . . Allies Melted . | . . . . . . . . . Intel | -11 -10 -9 -8 -7 -7 -6 -5 -4 ------- Run | Scr Mat Mat Mat Fac DSF Fac Fac Fac Robot Analysis Total . | . . . . . . . . . Derelict Logs Recovered . | . . . . . . . . . Drone Launches . | . . . . . . . . . Drone Recoveries . | . . . . . . . . . Exploration | -11 -10 -9 -8 -7 -7 -6 -5 -4 ------------- Run | Scr Mat Mat Mat Fac DSF Fac Fac Fac Turns Passed 826 | 3 59 104 83 28 58 298 140 53 Spaces Moved 1463 | 3 83 167 133 63 93 496 302 123 Core 15 | 3 12 . . . . . . . Treads . | . . . . . . . . . Legs . | . . . . . . . . . Wheels . | . . . . . . . . . Hover 788 | . 71 167 133 63 93 261 . . Flight 660 | . . . . . . 235 302 123 Fastest Speed 32 | 50 50 52 45 45 45 32 35 35 Average Speed 44 | 50 55 52 46 45 45 46 35 35 Slowest Speed 116 | 50 60 52 48 45 48 116 35 35 Overloaded Moves . | . . . . . . . . . Propulsion Burnouts . | . . . . . . . . . Robots Hopped 7 | . . . . . . 7 . . Cave-ins Triggered . | . . . . . . . . . Exploration Rate (%) 22 | 2 23 31 23 2 85 20 11 4 Regions Visited 8 Branch Regions . Pre-discovered Areas . | . . . . . . . . . Known Exits Taken 4 | . 1 . . 1 . 1 1 . Unknown Exits Taken 3 | 1 . 1 1 . . . . . Scrap Searched . | . . . . . . . . . Spaces Dug 3 | . . . . . . 3 . . Terrain Destroyed 39 | . . 36 . . . 3 . . Melee 3 | . . . . . . 3 . . Projectile . | . . . . . . . . . AOE 36 | . . 36 . . . . . . Terrain Rammed . | . . . . . . . . . Walls Destroyed . | . . . . . . . . . Machines Disabled . | . . . . . . . . . Actions | -11 -10 -9 -8 -7 -7 -6 -5 -4 --------- Run | Scr Mat Mat Mat Fac DSF Fac Fac Fac Total 1574 | 3 94 173 145 62 106 543 320 128 Wait 13 | . . . . . . 13 . . Move 1441 | 2 82 166 132 62 92 481 301 123 Hop 7 | . . . . . . 7 . . Pick Up 18 | . 3 . 2 . 3 7 3 . Fast Attach 25 | 1 5 1 3 . 3 7 3 2 Attach 14 | . 1 2 1 . . 7 2 1 Detach 1 | . . . . . . 1 . . Swap 4 | . . . 1 . 3 . . . Drop 18 | . 3 . 2 . 1 11 1 . Fire 6 | . . 4 2 . . . . . Melee 23 | . . . 2 . . 9 10 2 Ram . | . . . . . . . . . Kick . | . . . . . . . . . Crush . | . . . . . . . . . Escape Stasis 4 | . . . . . 4 . . . Rewire . | . . . . . . . . . Trap . | . . . . . . . . . Miscellaneous . | . . . . . . . . . Route ------- -11/Scrapyard -10/Materials (discovered 3 exits: *Mat x3) -9/Materials -8/Materials -7/Factory -7/DSF -6/Factory (discovered 6 exits: *Fac x4 / Low x2) -5/Factory -4/Factory (discovered 5 exits: Upp x2 / Ext x2 / Arm) History --------- Turn | Location | Event 1 | -11/Scrapyard | Released all parts (6) 1 | -11/Scrapyard | Discovered new exit (range 3) 4 | -11/Scrapyard | Entered Materials 52 | -10/Materials | Identified exit to Materials 63 | -10/Materials | Entered another Materials area 63 | -9/Materials | Evolved 2 slots: Propulsion x1, Utility x1 166 | -9/Materials | Discovered new exit (range 3) 167 | -9/Materials | Entered another Materials area 167 | -8/Materials | Evolved 2 slots: Propulsion x1, Utility x1 240 | -8/Materials | Discovered new exit (range 5) 250 | -8/Materials | Entered Factory 250 | -7/Factory | Evolved 2 slots: Utility x2 278 | -7/Factory | Identified exit to DSF 278 | -7/Factory | Entered DSF 298 | -7/DSF | Additional patrols routed to DSF 324 | -7/DSF | Discovered new exit (range 17) 336 | -7/DSF | Entered Factory 336 | -6/Factory | Evolved 2 slots: Utility x2 365 | -6/Factory | Build established: Mutant 460 | -6/Factory | Lost 3 parts (1n2u) 482 | -6/Factory | Spotted B-75 Beast 587 | -6/Factory | Lost 6 parts (3n3u) 598 | -6/Factory | Identified exit to Lower Caves 598 | -6/Factory | Identified exit to Factory 634 | -6/Factory | Entered another Factory area 634 | -5/Factory | Evolved 2 slots: Utility x2 767 | -5/Factory | Discovered new exit (range 22) 774 | -5/Factory | Identified exit to Factory 774 | -5/Factory | Entered another Factory area 774 | -4/Factory | Evolved 2 slots: Utility x2 810 | -4/Factory | Identified exit to Upper Caves 810 | -4/Factory | Identified exit to Extension 810 | -4/Factory | Identified exit to Armory 827 | -4/Factory | Self-destructed Last Messages --------------- 00810_ Connecting with Terminal... >>Access(Branch) Found 5 branch access points: (107,111) Upper Caves (163,131) Upper Caves (45,135) Extension (146,24) Extension (99,20) Armory Map updated. >>Traps(Locate) Found 5 traps in 2 arrays: 1x Stasis Trap 4x Shock Trap Map updated. >>Layout(Zone) Retrieving Zone 7Y layout... Downloaded map data. 00814_ ALERT: All DSF locations entering lockdown mode. 00815_ Hacking Suite destroyed. 00822_ Lgt. Fission Core severed. Map ----- +----------------------------------------------------+ | ??????????????>??????????????????????????????????? | | ?????????????????????????????????????????????????? | | ?????????????????????????????????????????????????? | | ?????????????????????????????????????????????????? | | ?????????????????????????????????????????????????? | | ?????????????????????????????????????????????????? | | ?????????????????????????????????????????????????? | | ????????????????????????????????????############## | | ????????????????????????????????????# # | | ????????????????????##??####???###??# """" # | | ????????????????????? #??# """" # | | ???????????????????? #??# """" !* # | | ?????????????????#???"" """ """ #??# """" ! # | | ?????????????????# """ """ """ #??# """" ! # | | ?????????????????? """ """ """ #??# """" # | | ??????????????????? #??# """" # | | ????????????????????""" """ """ #??# # | | ???????? ????H???? """ """ """ #??# # | | ?????????? ?????# """ """ """ #??# # | | ???????????# ???# #??# # | | ? # ## #######+####+##############+###### | | ? # """" ## | | ? # ""S"" ## ### | | ? # "" "" ## #?# | | ? # ## #?# cc | | ? # """ + #?# c@c | | ? # """ ## #?# ############+########## | | ? # """ ######## #?????# #??# | | ? # # ! # #?????#[ #??#### | | ? # # + ####### " " " " " #?????? | | ? # # "# ^ + " " " " " #?????? | | ? # # ""# ####### " " " " " #?????? | | ? # # " ""# #?????# " " " " " #?????? | | ? # """ # " ""#######?????# " " " " " #?????? | | ? # """ # " ""#???????????# " " " " " #?????? | | ? # """ # " T"#???????????# " " " " " #?????? | | ? # # " ""#???????????# " " " " " #?????? | | ? # # " ""#???????????# " " " " " #?????? | | ? ####?##### " ""#???????????#! #?????? | | ? ## # " ""#???????????############???????? | | ? ## # " "#??????????????????????????????? | | ? ## # #??????????????????????????????? | | ? ## ######+#??????????????????????????????? | | ? ########+###### ##########?????????????????????? | | ? ^^ # #?????????????????????? | | ? ^ # """#####?????????????????? | | ? # """# ?????????????????? | | ?######## ^"""" # """# ?????????????????? | | ????????# """" # # ?????????????????? | | ??####### """" + """# ?????????????????? | +----------------------------------------------------+ Best States ------------- Heat Dissipation 43 Energy Generation 18 Energy Capacity 250 Matter Stores 300 Matter Capacity 300 Sight Range 22 Robot Scan Range 15 Terrain Scan Density 10 Power Amplification 20 Additional Mass Support 9 Armor Coverage 300 Resistance: KI 25 Utility Shielding 66 Evasion (%) 63 Targeting Accuracy 8 Offensive Hacking 30 Defensive Hacking 12 Item Schematics ----------------- None Robot Schematics ------------------ None Fabricated ------------ Nothing Alien Tech Used ----------------- None Achievements -------------- None Challenges ------------ None Game ------ Seed ImpactNuclearInterrupter Manual? 0 Play Time 00:25:44 Cumulative 159.7 hours Start 2022.05.02 @ 14:25:06 End 2022.05.02 @ 14:49:18 Sessions 1 Manual Loads 0 Difficulty Rogue Special Mode None Game No. 257 Rogue 256 Adventurer 0 Explorer 1 Win Type - Total 7 Types 7/0/0/0/0/0/0/0/0 Lore% 60 Gallery% 63 Achievement% 53 Wizard Run 0 Options --------- ASCII 1 Keyboard 0 Movement Vi Keybinds 0 Fullscreen 1 Font 18/SmallcapsGlow Map View 76x50 Tactical HUD 1 Map Filters NONE Filters NONE Steam 1 RUN: 35cf6610-3676-454c-bd11-083b49106b65